Workbook

Sheet Вариант 1 (40 штук)
A1: ВВОДНЫЕ: Скопируйте таблицу и вставьте свои данные в желтые ячейки | F1: РЕЗУЛЬТАТ | I1: % локализации до 65% — доплата +20% | J1: % локализации от 65% до 74% — оплата 100% | K1: % локализации от 75% — скидка 50%
A3: Находятся в 1 кластере продаются по 40 штук | F3: Продажи | I3: =F24 -> 10000 | J3: =L24 -> 17000 | K3: =R24 -> 17000
A4: Стоимость товара | C4: 250 | F4: Прибыль | I4: =G24 -> 5000 | J4: =M24 -> 8500 | K4: =S24 -> 8500
A5: Маржа | C5: 125 | F5: Комиссия маркетплейса на логистику | I5: =H24 -> 1320 | J5: =N24 -> 1870 | K5: =T24 -> 935
A6: Логистика на 1 ед. товара | C6: 0.03 | F6: Доставка до терминала ТК | I6: =$F$24*$C$6 -> 300 | J6: =$L$24*$C$6 -> 510 | K6: =$R$24*$C$6 -> 510
A7: Комиссия маркетплейса | C7: 0.11 | D7: В среднем с последней милей | F7: Доставка до дверей маркетплейса ТК | I7: =$C$8 -> 1300 | J7: =7*$C$8 -> 9100 | K7: =8*$C$8 -> 10400
A8: Доставка ТК до дверей | C8: 1300 | F8: Прибыль минус затраты на логистику | I8: =I4-I5-I6-I7 -> 2080 | J8: -2980 | K8: -3345
A9: Ср. прирост продаж | C9: 1.7 | F9: % Прибыли минус затраты на логистику | I9: =100%-(I7+I5+I6)/I4 -> 0.416 | J9: -0.3505882353 | K9: -0.3935294118
A11: Вводные | E11: Вариант 1 = 1 кластер = повышенная логистика | I11: Вариант 2 = 7 кластеров = 100% за логистику | O11: Вариант 3 = 8 кластеров минус 50% на 100% за логистику
B12: Стоимость товара | C12: Маржа | D12: Комиссия на логистику | E12: Остаток | F12: Выручка и Остаток в рублях | G12: Прибыль | H12: Комиссия на логистику % локализации до 65% — доплата +20% | I12: Остаток | J12: Пророст продаж в кластере | K12: Продажи в штуках с учетом прироста | L12: Прирост продаж | M12: Прибыль с учетом прироста | N12: Сумма на логистику без надбавки. % локализации от 65% до 74% — оплата 100% | O12: Остаток | P12: Пророст продаж в кластере | Q12: Продажи в штуках с учетом прироста | R12: Прирост продаж | S12: Прибыль с учетом прироста | T12: Сумма на логистику % локализации от 75% — скидка 50%
A13: Кластер 1 | B13: =$C$4 -> 250 | C13: =$C$5 -> 125 | D13: =$C$7 -> 0.11 | E13: 40 | F13: =E13*B13 -> 10000 | G13: =C13*E13 -> 5000 | H13: =(F13*D13)*1.2 -> 1320 | I13: 6 | J13: =$C$9 -> 1.7 | K13: =I13*J13 -> 10.2 | L13: =B13*K13 -> 2550 | M13: =C13*K13 -> 1275 | N13: =L13*D13 -> 280.5 | O13: 5 | P13: =$C$9 -> 1.7 | Q13: =O13*P13 -> 8.5 | R13: =Q13*B13 -> 2125 | S13: =Q13*C13 -> 1062.5 | T13: =(R13*D13)/2 -> 116.875
A14: Кластер 2 | B14: 250 | C14: 125 | D14: 0.11 | E14: 0 | I14: 6 | J14: 1.7 | K14: 10.2 | L14: 2550 | M14: 1275 | N14: 280.5 | O14: 5 | P14: 1.7 | Q14: 8.5 | R14: 2125 | S14: 1062.5 | T14: 116.875
A15: Кластер 3 | B15: 250 | C15: 125 | D15: 0.11 | E15: 0 | I15: 6 | J15: 1.7 | K15: 10.2 | L15: 2550 | M15: 1275 | N15: 280.5 | O15: 5 | P15: 1.7 | Q15: 8.5 | R15: 2125 | S15: 1062.5 | T15: 116.875
A16: Кластер 4 | B16: 250 | C16: 125 | D16: 0.11 | E16: 0 | I16: 6 | J16: 1.7 | K16: 10.2 | L16: 2550 | M16: 1275 | N16: 280.5 | O16: 5 | P16: 1.7 | Q16: 8.5 | R16: 2125 | S16: 1062.5 | T16: 116.875
A17: Кластер 5 | B17: 250 | C17: 125 | D17: 0.11 | E17: 0 | I17: 6 | J17: 1.7 | K17: 10.2 | L17: 2550 | M17: 1275 | N17: 280.5 | O17: 4 | P17: 1.7 | Q17: 6.8 | R17: 1700 | S17: 850 | T17: 93.5
A18: Кластер 6 | B18: 250 | C18: 125 | D18: 0.11 | E18: 0 | I18: 5 | J18: 1.7 | K18: 8.5 | L18: 2125 | M18: 1062.5 | N18: 233.75 | O18: 4 | P18: 1.7 | Q18: 6.8 | R18: 1700 | S18: 850 | T18: 93.5
A19: Кластер 7 | B19: 250 | C19: 125 | D19: 0.11 | E19: 0 | I19: 5 | J19: 1.7 | K19: 8.5 | L19: 2125 | M19: 1062.5 | N19: 233.75 | O19: 4 | P19: 1.7 | Q19: 6.8 | R19: 1700 | S19: 850 | T19: 93.5
A20: Кластер 8 | B20: 250 | C20: 125 | D20: 0.11 | E20: 0 | I20: 0 | J20: 1.7 | K20: 0 | L20: 0 | M20: 0 | N20: 0 | O20: 4 | P20: 1.7 | Q20: 6.8 | R20: 1700 | S20: 850 | T20: 93.5
A21: Кластер 9 | B21: 250 | C21: 125 | D21: 0.11 | E21: 0 | I21: =F21*H21 -> 0 | J21: 1.7 | K21: 0 | L21: 0 | M21: 0 | N21: 0 | O21: 4 | P21: 1.7 | Q21: 6.8 | R21: 1700 | S21: 850 | T21: 93.5
A22: Кластер 10 | B22: 250 | C22: 125 | D22: 0.11 | E22: 0 | I22: 0 | J22: 1.7 | K22: 0 | L22: 0 | M22: 0 | N22: 0 | O22: 0 | P22: 1.7 | Q22: 0 | R22: 0 | S22: 0 | T22: 0
A23: Кластер 11 | B23: 250 | C23: 125 | D23: 0.11 | E23: 0 | I23: 0 | J23: 1.7 | K23: 0 | L23: 0 | M23: 0 | N23: 0 | O23: 0 | P23: 1.7 | Q23: 0 | R23: 0 | S23: 0 | T23: 0
A24: Итого | E24: =SUM(E13:E22) -> 40 | F24: 10000 | G24: 5000 | H24: 1320 | I24: 40 | K24: =SUM(K13:K22) -> 68 | L24: 17000 | M24: 8500 | N24: 1870 | O24: 40 | Q24: =SUM(Q13:Q22) -> 68 | R24: 17000 | S24: 8500 | T24: 935

Sheet Вариант 2 (800 шт)
A1: ВВОДНЫЕ: Скопируйте таблицу и вставьте свои данные в желтые ячейки | F1: РЕЗУЛЬТАТ | I1: % локализации до 65% — доплата +20% | J1: % локализации от 65% до 74% — оплата 100% | K1: % локализации от 75% — скидка 50%
A3: Находятся в 1 кластере продаются по 800 штук | F3: Продажи | I3: =F24 -> 200000 | J3: =L24 -> 340000 | K3: =R24 -> 340000
A4: Стоимость товара | C4: 250 | F4: Прибыль | I4: =G24 -> 100000 | J4: =M24 -> 170000 | K4: =S24 -> 170000
A5: Маржа | C5: 125 | F5: Комиссия маркетплейса на логистику | I5: =H24 -> 26400 | J5: =N24 -> 37400 | K5: =T24 -> 18700
A6: Логистика на 1 ед. товара | C6: 0.03 | F6: Доставка до терминала ТК | I6: =$F$24*$C$6 -> 6000 | J6: =$L$24*$C$6 -> 10200 | K6: =$R$24*$C$6 -> 10200
A7: Комиссия маркетплейса | C7: 0.11 | D7: В среднем с последней милей | F7: Доставка до дверей маркетплейса ТК | I7: =$C$8 -> 1300 | J7: =7*$C$8 -> 9100 | K7: =8*$C$8 -> 10400
A8: Доставка ТК до дверей | C8: 1300 | F8: Прибыль минус затраты на логистику | I8: =I4-I5-I6-I7 -> 66300 | J8: 113300 | K8: 130700
A9: Ср. прирост продаж | C9: 1.7 | F9: % Прибыли минус затраты на логистику | I9: =100%-(I7+I5+I6)/I4 -> 0.663 | J9: 0.6664705882 | K9: 0.7688235294
A11: Вводные | E11: Вариант 1 = 1 кластер = повышенная логистика | I11: Вариант 2 = 7 кластеров = 100% за логистику | O11: Вариант 3 = 8 кластеров минус 50% на 100% за логистику
B12: Стоимость товара | C12: Маржа | D12: Комиссия на логистику | E12: Остаток | F12: Выручка и Остаток в рублях | G12: Прибыль | H12: Комиссия на логистику % локализации до 65% — доплата +20% | I12: Остаток | J12: Пророст продаж в кластере | K12: Продажи в штуках с учетом прироста | L12: Прирост продаж | M12: Прибыль с учетом прироста | N12: Сумма на логистику без надбавки. % локализации от 65% до 74% — оплата 100% | O12: Остаток | P12: Пророст продаж в кластере | Q12: Продажи в штуках с учетом прироста | R12: Прирост продаж | S12: Прибыль с учетом прироста | T12: Сумма на логистику % локализации от 75% — скидка 50%
A13: Кластер 1 | B13: =$C$4 -> 250 | C13: =$C$5 -> 125 | D13: =$C$7 -> 0.11 | E13: 800 | F13: =E13*B13 -> 200000 | G13: =C13*E13 -> 100000 | H13: =(F13*D13)*1.2 -> 26400 | I13: 120 | J13: =$C$9 -> 1.7 | K13: =I13*J13 -> 204 | L13: =B13*K13 -> 51000 | M13: =C13*K13 -> 25500 | N13: =L13*D13 -> 5610 | O13: 100 | P13: =$C$9 -> 1.7 | Q13: =O13*P13 -> 170 | R13: =Q13*B13 -> 42500 | S13: =Q13*C13 -> 21250 | T13: =(R13*D13)/2 -> 2337.5
A14: Кластер 2 | B14: 250 | C14: 125 | D14: 0.11 | E14: 0 | I14: 120 | J14: 1.7 | K14: 204 | L14: 51000 | M14: 25500 | N14: 5610 | O14: 100 | P14: 1.7 | Q14: 170 | R14: 42500 | S14: 21250 | T14: 2337.5
A15: Кластер 3 | B15: 250 | C15: 125 | D15: 0.11 | E15: 0 | I15: 120 | J15: 1.7 | K15: 204 | L15: 51000 | M15: 25500 | N15: 5610 | O15: 100 | P15: 1.7 | Q15: 170 | R15: 42500 | S15: 21250 | T15: 2337.5
A16: Кластер 4 | B16: 250 | C16: 125 | D16: 0.11 | E16: 0 | I16: 120 | J16: 1.7 | K16: 204 | L16: 51000 | M16: 25500 | N16: 5610 | O16: 100 | P16: 1.7 | Q16: 170 | R16: 42500 | S16: 21250 | T16: 2337.5
A17: Кластер 5 | B17: 250 | C17: 125 | D17: 0.11 | E17: 0 | I17: 120 | J17: 1.7 | K17: 204 | L17: 51000 | M17: 25500 | N17: 5610 | O17: 100 | P17: 1.7 | Q17: 170 | R17: 42500 | S17: 21250 | T17: 2337.5
A18: Кластер 6 | B18: 250 | C18: 125 | D18: 0.11 | E18: 0 | I18: 100 | J18: 1.7 | K18: 170 | L18: 42500 | M18: 21250 | N18: 4675 | O18: 100 | P18: 1.7 | Q18: 170 | R18: 42500 | S18: 21250 | T18: 2337.5
A19: Кластер 7 | B19: 250 | C19: 125 | D19: 0.11 | E19: 0 | I19: 100 | J19: 1.7 | K19: 170 | L19: 42500 | M19: 21250 | N19: 4675 | O19: 100 | P19: 1.7 | Q19: 170 | R19: 42500 | S19: 21250 | T19: 2337.5
A20: Кластер 8 | B20: 250 | C20: 125 | D20: 0.11 | E20: 0 | I20: 0 | J20: 1.7 | K20: 0 | L20: 0 | M20: 0 | N20: 0 | O20: 100 | P20: 1.7 | Q20: 170 | R20: 42500 | S20: 21250 | T20: 2337.5
A21: Кластер 9 | B21: 250 | C21: 125 | D21: 0.11 | E21: 0 | I21: =F21*H21 -> 0 | J21: 1.7 | K21: 0 | L21: 0 | M21: 0 | N21: 0 | O21: 0 | P21: 1.7 | Q21: 0 | R21: 0 | S21: 0 | T21: 0
A22: Кластер 10 | B22: 250 | C22: 125 | D22: 0.11 | E22: 0 | I22: 0 | J22: 1.7 | K22: 0 | L22: 0 | M22: 0 | N22: 0 | O22: 0 | P22: 1.7 | Q22: 0 | R22: 0 | S22: 0 | T22: 0
A23: Кластер 11 | B23: 250 | C23: 125 | D23: 0.11 | E23: 0 | I23: 0 | J23: 1.7 | K23: 0 | L23: 0 | M23: 0 | N23: 0 | O23: 0 | P23: 1.7 | Q23: 0 | R23: 0 | S23: 0 | T23: 0
A24: Итого | E24: =SUM(E13:E22) -> 800 | F24: 200000 | G24: 100000 | H24: 26400 | I24: 800 | K24: =SUM(K13:K22) -> 1360 | L24: 340000 | M24: 170000 | N24: 37400 | O24: 800 | Q24: =SUM(Q13:Q22) -> 1360 | R24: 340000 | S24: 170000 | T24: 18700

Sheet Вариант 3 ( 2000 штук).
A1: ВВОДНЫЕ: Скопируйте таблицу и вставьте свои данные в желтые ячейки | F1: РЕЗУЛЬТАТ | I1: % локализации до 65% — доплата +20% | J1: % локализации от 65% до 74% — оплата 100% | K1: % локализации от 75% — скидка 50%
A3: Находятся в 1 кластере продаются по 2000 штук | F3: Продажи | I3: =F24 -> 500000 | J3: =L24 -> 850000 | K3: =R24 -> 850000
A4: Стоимость товара | C4: 250 | F4: Прибыль | I4: =G24 -> 250000 | J4: =M24 -> 425000 | K4: =S24 -> 425000
A5: Маржа | C5: 125 | F5: Комиссия маркетплейса на логистику | I5: =H24 -> 66000 | J5: =N24 -> 93500 | K5: =T24 -> 46750
A6: Логистика на 1 ед. товара | C6: 0.03 | F6: Доставка до терминала ТК | I6: =$F$24*$C$6 -> 15000 | J6: =$L$24*$C$6 -> 25500 | K6: =$R$24*$C$6 -> 25500
A7: Комиссия маркетплейса | C7: 0.11 | D7: В среднем с последней милей | F7: Доставка до дверей маркетплейса ТК | I7: =$C$8 -> 1300 | J7: =7*$C$8 -> 9100 | K7: =8*$C$8 -> 10400
A8: Доставка ТК до дверей | C8: 1300 | F8: Прибыль минус затраты на логистику | I8: =I4-I5-I6-I7 -> 167700 | J8: 296900 | K8: 342350
A9: Ср. прирост продаж | C9: 1.7 | F9: % Прибыли минус затраты на логистику | I9: =100%-(I7+I5+I6)/I4 -> 0.6708 | J9: 0.6985882353 | K9: 0.8055294118
A11: Вводные | E11: Вариант 1 = 1 кластер = повышенная логистика | I11: Вариант 2 = 7 кластеров = 100% за логистику | O11: Вариант 3 = 8 кластеров минус 50% на 100% за логистику
B12: Стоимость товара | C12: Маржа | D12: Комиссия на логистику | E12: Остаток | F12: Выручка и Остаток в рублях | G12: Прибыль | H12: Комиссия на логистику % локализации до 65% — доплата +20% | I12: Остаток | J12: Пророст продаж в кластере | K12: Продажи в штуках с учетом прироста | L12: Прирост продаж | M12: Прибыль с учетом прироста | N12: Сумма на логистику без надбавки. % локализации от 65% до 74% — оплата 100% | O12: Остаток | P12: Пророст продаж в кластере | Q12: Продажи в штуках с учетом прироста | R12: Прирост продаж | S12: Прибыль с учетом прироста | T12: Сумма на логистику % локализации от 75% — скидка 50%
A13: Кластер 1 | B13: =$C$4 -> 250 | C13: =$C$5 -> 125 | D13: =$C$7 -> 0.11 | E13: 2000 | F13: =E13*B13 -> 500000 | G13: =C13*E13 -> 250000 | H13: =(F13*D13)*1.2 -> 66000 | I13: 300 | J13: =$C$9 -> 1.7 | K13: =I13*J13 -> 510 | L13: =B13*K13 -> 127500 | M13: =C13*K13 -> 63750 | N13: =L13*D13 -> 14025 | O13: 300 | P13: =$C$9 -> 1.7 | Q13: =O13*P13 -> 510 | R13: =Q13*B13 -> 127500 | S13: =Q13*C13 -> 63750 | T13: =(R13*D13)/2 -> 7012.5
A14: Кластер 2 | B14: 250 | C14: 125 | D14: 0.11 | E14: 0 | I14: 300 | J14: 1.7 | K14: 510 | L14: 127500 | M14: 63750 | N14: 14025 | O14: 300 | P14: 1.7 | Q14: 510 | R14: 127500 | S14: 63750 | T14: 7012.5
A15: Кластер 3 | B15: 250 | C15: 125 | D15: 0.11 | E15: 0 | I15: 300 | J15: 1.7 | K15: 510 | L15: 127500 | M15: 63750 | N15: 14025 | O15: 300 | P15: 1.7 | Q15: 510 | R15: 127500 | S15: 63750 | T15: 7012.5
A16: Кластер 4 | B16: 250 | C16: 125 | D16: 0.11 | E16: 0 | I16: 300 | J16: 1.7 | K16: 510 | L16: 127500 | M16: 63750 | N16: 14025 | O16: 300 | P16: 1.7 | Q16: 510 | R16: 127500 | S16: 63750 | T16: 7012.5
A17: Кластер 5 | B17: 250 | C17: 125 | D17: 0.11 | E17: 0 | I17: 300 | J17: 1.7 | K17: 510 | L17: 127500 | M17: 63750 | N17: 14025 | O17: 200 | P17: 1.7 | Q17: 340 | R17: 85000 | S17: 42500 | T17: 4675
A18: Кластер 6 | B18: 250 | C18: 125 | D18: 0.11 | E18: 0 | I18: 300 | J18: 1.7 | K18: 510 | L18: 127500 | M18: 63750 | N18: 14025 | O18: 200 | P18: 1.7 | Q18: 340 | R18: 85000 | S18: 42500 | T18: 4675
A19: Кластер 7 | B19: 250 | C19: 125 | D19: 0.11 | E19: 0 | I19: 200 | J19: 1.7 | K19: 340 | L19: 85000 | M19: 42500 | N19: 9350 | O19: 200 | P19: 1.7 | Q19: 340 | R19: 85000 | S19: 42500 | T19: 4675
A20: Кластер 8 | B20: 250 | C20: 125 | D20: 0.11 | E20: 0 | I20: 0 | J20: 1.7 | K20: 0 | L20: 0 | M20: 0 | N20: 0 | O20: 100 | P20: 1.7 | Q20: 170 | R20: 42500 | S20: 21250 | T20: 2337.5
A21: Кластер 9 | B21: 250 | C21: 125 | D21: 0.11 | E21: 0 | I21: =F21*H21 -> 0 | J21: 1.7 | K21: 0 | L21: 0 | M21: 0 | N21: 0 | O21: 100 | P21: 1.7 | Q21: 170 | R21: 42500 | S21: 21250 | T21: 2337.5
A22: Кластер 10 | B22: 250 | C22: 125 | D22: 0.11 | E22: 0 | I22: 0 | J22: 1.7 | K22: 0 | L22: 0 | M22: 0 | N22: 0 | O22: 0 | P22: 1.7 | Q22: 0 | R22: 0 | S22: 0 | T22: 0
A23: Кластер 11 | B23: 250 | C23: 125 | D23: 0.11 | E23: 0 | I23: 0 | J23: 1.7 | K23: 0 | L23: 0 | M23: 0 | N23: 0 | O23: 0 | P23: 1.7 | Q23: 0 | R23: 0 | S23: 0 | T23: 0
A24: Итого | E24: =SUM(E13:E22) -> 2000 | F24: 500000 | G24: 250000 | H24: 66000 | I24: 2000 | K24: =SUM(K13:K22) -> 3400 | L24: 850000 | M24: 425000 | N24: =SUM(N13:N23) -> 93500 | O24: =SUM(O13:O22) -> 2000 | Q24: =SUM(Q13:Q22) -> 3400 | R24: 850000 | S24: 425000 | T24: =SUM(T13:T23) -> 46750
